bitfinex/quotes_SOLUSD_20241005
["timestamp","ask_amount","ask_price","bid_price","bid_amount"]
[1728094803590,8.6491069,144.0,143.93,9.1867088]
[1728094803798,6.945,143.99,143.94,16.1339088]
[1728094804115,7.7936069,144.0,143.95,6.9467]
[1728094805408,6.9453,143.99,143.94,24.3147]
[1728094805728,6.9453,143.99,143.95,1.35498884]
[1728094806292,0.8491069,144.0,143.94,17.3675]
[1728094806490,6.9455,143.98,143.94,17.3675]
[1728094806716,6.9467,143.96,143.91,24.3198]
[1728094807098,6.9469,143.95,143.91,17.3715]
[1728094809400,6.9469,143.95,143.91,24.3201]
[1728094810114,6.9469,143.95,143.91,17.3715]
[1728094810499,2.58588407,144.0,143.9,6.9491]
[1728094810693,2.58588407,144.0,143.89,31.6700088]
[1728094810694,6.9474,143.94,143.89,29.4329]
[1728094813623,6.9474,143.94,143.9,6.9492]
[1728094813815,25.163,143.99,143.91,1.35587828]
[1728094814023,6.9464,143.96,143.91,6.9487]
[1728094816825,17.363,143.99,143.9,17.49799]
[1728094817027,6.946,143.97,143.93,6.9477]
[1728094817329,6.9455,143.98,143.94,1.35504781]
[1728094817635,0.8491069,144.0,143.94,8.30234781]
[1728094817836,6.945,143.99,143.94,8.30234781]
[1728094818931,6.945,143.99,143.94,6.9473]
[1728094820254,6.945,143.99,143.95,15.5757]
[1728094821716,6.945,143.99,143.95,21.8164]
[1728094821924,6.945,143.99,143.96,1.35438947]
[1728094822635,7.7935069,144.0,143.96,1.35438947]
[1728094823431,7.7935069,144.0,143.95,28.7632]
[1728094825022,0.8491069,144.0,143.95,21.8164]
[1728094825215,6.9454,143.98,143.95,21.8164]
[1728094825536,6.945,143.99,143.95,21.8164]
[1728094831850,0.8491069,144.0,143.92,15.8844]
[1728094831851,1.73619381,143.98,143.92,15.8844]
[1728094832017,6.9474,143.94,143.92,15.8844]
[1728094832221,17.363,143.99,143.92,15.8844]
[1728094832222,6.9478,143.93,143.92,15.8844]
[1728094832534,6.9478,143.93,143.92,24.58877967]
[1728094832724,6.9478,143.93,143.92,15.8844]
[1728094833638,6.9478,143.93,143.88,22.8345]
[1728094833816,6.9478,143.93,143.89,22.63347695]
[1728094834143,6.9478,143.93,143.88,22.8345]
[1728094834641,6.9478,143.93,143.89,24.027864]
[1728094836840,6.9492,143.9,143.88,15.8844]
[1728094837136,6.9488,143.91,143.88,15.8844]
[1728094837619,17.3678,143.95,143.88,15.8844]
[1728094837819,6.9483,143.92,143.88,15.8844]
[1728094839243,6.9472,143.95,143.9,16.1357088]
[1728094839551,6.9474,143.94,143.9,16.1357088]
[1728094839715,6.9474,143.94,143.9,6.949]
[1728094840128,6.9474,143.94,143.89,30.977464]
[1728094840521,6.9479,143.93,143.89,30.977464]
[1728094840734,6.9483,143.92,143.88,49.3960088]
[1728094841324,6.9483,143.92,143.88,42.4458088]
[1728094842056,6.9483,143.92,143.88,33.2591]
[1728094845419,1.73702523,143.97,143.88,15.8844]
[1728094845625,6.9493,143.9,143.88,15.8844]
[1728094845816,6.9487,143.92,143.88,15.8844]
[1728094847227,1.73713155,143.95,143.88,15.8844]
[1728094847421,6.9487,143.91,143.88,15.8844]
[1728094848532,6.9479,143.93,143.89,1.35665884]
[1728094849042,1.21073524,143.98,143.89,10.54336764]
[1728094849220,6.9472,143.95,143.89,16.1360088]
[1728094850130,6.9474,143.94,143.89,16.1360088]
[1728094855149,6.9469,143.95,143.91,6.9485]
[1728094855344,6.9469,143.95,143.92,1.35563299]
[1728094855538,6.9469,143.95,143.91,6.9485]
[1728094855938,6.9469,143.95,143.9,30.976964]
[1728094857558,6.9469,143.95,143.91,1.35568387]
[1728094857734,6.9469,143.95,143.91,8.30438387]
[1728094858058,6.9464,143.96,143.91,8.30438387]
[1728094858233,6.9464,143.96,143.91,6.9487]
[1728094859434,6.9464,143.96,143.92,1.35533253]
[1728094859636,6.9464,143.96,143.91,6.9487]
[1728094859963,6.9464,143.96,143.92,1.35533908]
[1728094860261,6.9469,143.95,143.92,6.5878]
[1728094860957,6.9474,143.94,143.92,6.5878]
[1728094865853,17.3627,143.99,143.93,1.35570274]
[1728094866055,6.9464,143.96,143.92,6.5878]
[1728094874952,6.9464,143.96,143.93,1.3553502]
[1728094875153,6.9464,143.96,143.92,6.5878]
[1728094876253,6.9474,143.94,143.92,6.5878]
[1728094880577,6.9474,143.94,143.9,24.027864]
[1728094881257,6.9474,143.94,143.89,30.3761]
[1728094881258,6.9482,143.93,143.89,23.4265]
[1728094881566,17.3678,143.95,143.88,15.8844]
[1728094881759,1.73716529,143.94,143.88,15.8844]
[1728094882974,6.9493,143.9,143.88,15.8844]
[1728094889486,17.3678,143.95,143.89,1.35698021]
[1728094889487,6.9483,143.92,143.89,1.35698021]
[1728094890166,6.9483,143.92,143.88,15.8844]
[1728094890369,6.9483,143.92,143.89,1.35658679]
[1728094890567,6.9483,143.92,143.88,15.8844]
[1728094890781,17.3678,143.95,143.88,15.8844]
[1728094890963,6.9492,143.9,143.88,15.8844]
[1728094891286,6.9492,143.9,143.89,1.35700615]
[1728094891482,6.9492,143.9,143.88,17.24143067]
[1728094892260,17.3678,143.95,143.88,17.24143067]
[1728094892464,6.9489,143.91,143.88,17.24143067]
[1728094892664,6.9489,143.91,143.88,15.8844]
[1728094899390,6.9484,143.92,143.88,15.8844]
[1728094901695,6.949,143.91,143.88,15.8844]
[1728094902290,17.3678,143.95,143.88,15.8844]
[1728094902291,6.9497,143.89,143.88,15.8844]
[1728094903194,6.9493,143.9,143.88,15.8844]
[1728094904185,6.9488,143.91,143.88,15.8844]
[1728094906194,17.37,143.93,143.85,6.0529]
[1728094906195,1.73719457,143.92,143.85,6.0529]
[1728094906397,6.9502,143.88,143.85,6.0529]
[1728094907283,6.9498,143.89,143.85,6.0529]
[1728094908078,6.9498,143.89,143.85,13.0045]
[1728094908972,6.9498,143.89,143.85,22.1912088]
[1728094910293,6.9498,143.89,143.85,6.0529]
[1728094912877,6.9498,143.89,143.84,48.8441088]
[1728094913079,1.73747662,143.88,143.84,15.3255]
[1728094913306,6.9522,143.84,143.81,6.2764]
[1728094914000,6.9525,143.84,143.81,6.2764]
[1728094914986,6.9526,143.83,143.8,16.4995]
[1728094918908,6.9522,143.84,143.8,25.6862088]
[1728094920510,6.9517,143.85,143.8,32.6402088]
[1728094920720,6.9516,143.86,143.82,9.1867088]
[1728094920910,6.9516,143.86,143.83,1.35862845]
[1728094921912,6.9508,143.87,143.83,1.35862845]
[1728094922118,6.9508,143.87,143.82,16.1397088]
[1728094923406,6.9508,143.87,143.82,22.5223088]
[1728094923619,17.3713,143.92,143.84,9.1867088]
[1728094923909,6.2077,143.94,143.85,16.3257]
[1728094924094,6.9492,143.9,143.85,23.2773]
[1728094924406,6.9492,143.9,143.86,1.35758973]
[1728094924813,6.2077,143.94,143.85,23.2773]
[1728094925023,6.9497,143.89,143.85,16.3257]
[1728094930301,6.9491,143.91,143.86,6.9511]
[1728094931206,6.9491,143.91,143.86,16.1378088]
[1728094931519,6.9493,143.9,143.86,16.1378088]
[1728094932819,25.1677,143.95,143.86,9.1867088]
[1728094933021,6.9484,143.92,143.87,8.30765929]
[1728094933621,6.9484,143.92,143.87,14.75205929]
[1728094933826,17.3677,143.95,143.87,13.3951]
[1728094934018,6.9488,143.91,143.87,13.3951]
[1728094935130,17.3677,143.95,143.87,13.3951]
[1728094935307,6.9484,143.92,143.88,6.95]
[1728094936310,6.9484,143.92,143.87,13.395]
[1728094938603,6.9481,143.93,143.88,6.95]
[1728094938806,32.66294453,143.98,143.88,6.95]
[1728094938807,0.12549,143.97,143.89,1.3566249]
[1728094939106,6.9478,143.93,143.88,24.3247]
[1728094939318,6.9484,143.92,143.88,24.3247]
[1728094940334,6.9484,143.92,143.88,17.3745]
[1728094943528,6.9487,143.91,143.87,6.4444]
[1728094952638,6.9487,143.91,143.87,15.6311088]
[1728094953031,6.9487,143.91,143.87,6.4444]
[1728094955143,1.73709723,143.96,143.87,6.4444]
[1728094955328,6.9502,143.88,143.87,6.4444]
[1728094955752,6.9502,143.88,143.85,16.3257]
[1728094958546,6.9493,143.9,143.86,1.35783003]
[1728094959142,17.37,143.93,143.85,23.2769]
[1728094959351,6.9498,143.89,143.85,23.2769]
[1728094969952,6.9498,143.89,143.86,1.35752673]
[1728094970664,6.9498,143.89,143.85,23.2769]
[1728094983880,6.9498,143.89,143.85,16.3257]
[1728094984168,6.9517,143.85,143.83,6.4671]
[1728094984369,1.7376172,143.88,143.83,6.4671]
[1728094984671,17.3753,143.89,143.81,39.9823]
[1728094984873,6.9517,143.85,143.81,33.0292]
[1728094988292,17.3753,143.89,143.81,33.0292]
[1728094988580,6.9512,143.87,143.82,1.3587354]
[1728094989263,17.3753,143.89,143.81,39.9824]
[1728094989467,6.9512,143.86,143.81,39.9824]
[1728094990489,6.9512,143.86,143.82,1.35850075]
[1728094991189,6.9512,143.86,143.81,39.9824]
[1728094991795,6.9512,143.86,143.81,49.1691088]
[1728094992787,6.9512,143.86,143.82,1.35850643]
[1728094993170,6.9512,143.86,143.81,49.1691088]
[1728094994979,6.9508,143.87,143.82,17.74879633]
[1728094995184,6.9508,143.87,143.83,6.9525]
[1728094995685,6.9508,143.87,143.84,1.35824088]
[1728094996283,6.9508,143.87,143.83,6.9525]
[1728094996988,6.9508,143.87,143.82,16.3905888]
[1728094999077,6.9502,143.89,143.83,17.49705191]
[1728094999898,6.9502,143.89,143.84,13.1473]
[1728095000101,6.9503,143.88,143.85,1.35790332]
[1728095000293,6.9503,143.88,143.84,13.1473]
[1728095000474,6.9503,143.88,143.85,1.35795161]
[1728095001385,17.3713,143.92,143.86,1.35795176]
[1728095001591,6.9496,143.9,143.85,6.9516]
[1728095002604,6.9498,143.89,143.85,6.9516]
[1728095002808,6.9498,143.89,143.84,15.3819088]
[1728095003114,6.9498,143.89,143.84,22.3339088]
[1728095004006,6.9498,143.89,143.85,15.2109]
[1728095006304,6.9498,143.89,143.86,1.35756055]
[1728095006799,6.9498,143.89,143.85,15.2109]
[1728095011897,6.9503,143.88,143.85,15.2109]
[1728095014902,1.73750905,143.91,143.84,6.1952]
[1728095015113,6.9515,143.86,143.82,16.17519]
[1728095015710,1.73780869,143.89,143.82,16.0497]
[1728095015918,6.9526,143.83,143.82,16.0497]
[1728095016234,41.0789,143.91,143.8,6.5519]
[1728095016235,6.9532,143.82,143.8,6.5519]
[1728095016520,6.9527,143.83,143.8,6.5519]
[1728095017516,1.73817675,143.85,143.8,6.5519]
[1728095017708,6.9533,143.82,143.78,16.0497]
[1728095021209,6.9533,143.82,143.78,32.1914088]
[1728095031133,6.9533,143.82,143.79,9.1867088]
[1728095034729,6.9528,143.83,143.79,9.1867088]
[1728095043032,6.9528,143.83,143.78,32.1914088]
[1728095044242,6.9518,143.85,143.8,16.1404088]
[1728095044453,6.9518,143.85,143.81,10.54577344]
[1728095044946,25.1746,143.89,143.81,10.54577344]
[1728095045119,6.9522,143.84,143.81,10.54577344]
[1728095046533,6.9522,143.84,143.81,1.35906464]
[1728095046843,6.9522,143.84,143.8,6.9539]
[1728095047345,6.9522,143.84,143.79,26.5720088]
[1728095047543,6.9522,143.84,143.79,33.5264088]
[1728095056265,6.9522,143.84,143.79,24.3397]
[1728095056464,1.73811714,143.88,143.79,24.3397]
[1728095056767,6.9527,143.83,143.79,24.3397]
[1728095065451,6.9534,143.82,143.78,16.0497]
[1728095065751,6.9542,143.8,143.78,16.0497]
[1728095067280,6.9545,143.79,143.78,16.0497]
[1728095068254,6.9545,143.79,143.76,23.9414]
[1728095070573,6.9545,143.79,143.76,33.1281088]
[1728095070895,6.9541,143.8,143.76,33.1281088]
[1728095071683,6.9535,143.82,143.77,8.56671564]
[1728095071987,6.9535,143.82,143.78,9.1867088]
[1728095072158,6.9535,143.82,143.79,1.35963905]
[1728095072588,6.9535,143.82,143.78,9.1867088]
[1728095072882,6.954,143.81,143.77,9.1867088]
[1728095075296,17.3797,143.85,143.78,1.35998004]
[1728095075501,6.953,143.83,143.78,17.50168884]
[1728095075800,6.953,143.83,143.78,16.1417088]
[1728095077078,6.953,143.83,143.79,1.35957203]
[1728095077595,17.376,143.88,143.81,9.1867088]
[1728095077804,6.9512,143.86,143.82,17.49837505]
[1728095078474,6.9512,143.86,143.82,10.54537505]
[1728095079099,7.8,143.93,143.84,9.1867088]
[1728095079272,6.9497,143.9,143.85,16.1383088]
[1728095079474,6.9498,143.89,143.85,16.1383088]
[1728095079699,6.9493,143.9,143.86,1.35778508]
[1728095080004,7.8,143.93,143.86,1.35778508]
[1728095080206,7.8,143.93,143.85,16.1383088]
[1728095080207,6.9497,143.89,143.85,16.1383088]
[1728095080372,6.9497,143.89,143.84,49.9243088]
[1728095080579,6.9502,143.88,143.84,49.9243088]
[1728095080911,1.73755188,143.92,143.84,16.4061]
[1728095081087,19.10925188,143.92,143.84,16.4061]
[1728095081677,6.9506,143.88,143.84,16.4061]
[1728095092906,7.8,143.93,143.85,9.1867088]
[1728095093084,17.3677,143.95,143.84,49.6331088]
[1728095093286,17.3677,143.95,143.85,24.027864]
[1728095093594,13.9297,143.97,143.85,24.027864]
[1728095093595,1.73738261,143.94,143.86,9.1867088]
[1728095093798,6.9479,143.93,143.88,16.1365088]
[1728095094007,6.9479,143.93,143.89,1.35679125]
[1728095094410,6.9479,143.93,143.88,16.1365088]
[1728095095289,6.9479,143.93,143.89,1.35659759]
[1728095097991,13.9297,143.97,143.87,17.50209]
[1728095098188,6.9489,143.91,143.87,17.50209]
[1728095098689,6.9489,143.91,143.87,24.45269]
[1728095099304,6.9484,143.92,143.87,24.45269]
[1728095100415,6.9484,143.92,143.88,1.35679012]
[1728095100711,6.9484,143.92,143.88,8.30679012]
[1728095101213,6.9484,143.92,143.88,6.95]
[1728095102110,1.73717347,143.91,143.84,40.4469]
[1728095102284,1.73717347,143.91,143.84,23.0667]
[1728095102487,6.9497,143.89,143.85,6.9516]
[1728095107331,6.9502,143.88,143.84,23.0667]
[1728095107516,6.9509,143.87,143.84,23.0667]
[1728095108037,17.3738,143.9,143.84,23.0667]
[1728095108203,6.9516,143.86,143.84,16.4061]
[1728095112128,6.9507,143.87,143.84,16.4061]
[1728095113214,6.9501,143.89,143.85,1.35822936]
[1728095114636,6.9503,143.88,143.85,1.35822936]
[1728095115717,6.9503,143.88,143.84,23.3581]
[1728095117033,6.9503,143.88,143.84,16.4061]
[1728095118244,6.9503,143.88,143.84,17.76408733]
[1728095118640,6.9503,143.88,143.84,16.4061]
[1728095120251,6.9503,143.88,143.85,1.35797937]
[1728095120649,6.9503,143.88,143.84,16.4061]
[1728095120952,6.9522,143.84,143.8,6.4174]
[1728095126955,17.3751,143.89,143.81,10.54580129]
[1728095127157,6.9508,143.87,143.82,23.5147]
[1728095127357,6.9508,143.87,143.83,8.31081473]
[1728095128477,6.9508,143.87,143.83,17.49752353]
[1728095128771,6.9502,143.88,143.83,17.49752353]
[1728095129364,56.33971865,143.95,143.83,10.54502353]
[1728095129674,6.9493,143.9,143.85,6.9512]
[1728095129863,66.4358,143.95,143.84,39.7135728]
[1728095130074,6.9491,143.91,143.86,8.30849805]
[1728095130241,6.9491,143.91,143.87,16.73204404]
[1728095130443,7.8,143.95,143.87,16.73204404]
[1728095130673,6.9483,143.92,143.87,34.10814404]
[1728095130874,6.9483,143.92,143.87,41.05874404]
[1728095131060,6.9483,143.92,143.87,39.7014]
[1728095135999,6.9489,143.91,143.87,32.7508]
[1728095136202,17.49229,143.96,143.87,15.3747]
[1728095136203,6.9501,143.89,143.87,15.3747]
[1728095136567,6.9502,143.88,143.87,15.3747]
[1728095136879,1.73752445,143.93,143.84,13.451]
[1728095136880,6.9513,143.86,143.84,6.499]
[1728095137077,1.73775296,143.91,143.84,13.451]
[1728095137694,6.9498,143.89,143.85,6.9516]
[1728095139501,6.9493,143.9,143.85,6.9516]
[1728095147198,6.9502,143.88,143.84,30.8305]
[1728095150822,17.3702,143.93,143.84,6.499]
[1728095150823,6.9507,143.87,143.84,6.499]
[1728095150987,1.73756838,143.92,143.84,6.499]
[1728095151193,1.73756838,143.92,143.83,15.7501]
[1728095151194,6.9516,143.85,143.83,15.7501]
[1728095159226,6.9533,143.82,143.8,6.1293]
[1728095160911,17.3779,143.87,143.8,6.1293]
[1728095161110,6.9526,143.83,143.8,6.1293]
[1728095161322,1.7382347,143.86,143.8,6.1293]
[1728095161530,1.7382347,143.86,143.78,15.2919]
[1728095161710,6.9532,143.82,143.78,15.2919]
[1728095162102,6.9532,143.82,143.78,24.4786088]
[1728095162327,6.9532,143.82,143.78,25.83830749]
[1728095162527,6.9532,143.82,143.78,24.4786088]
[1728095164417,6.9532,143.82,143.78,31.4336088]
[1728095165909,6.9526,143.84,143.78,24.4786088]
[1728095166237,6.9526,143.84,143.79,8.31392556]
[1728095166834,6.9526,143.84,143.79,6.9545]
[1728095167133,6.9527,143.83,143.79,6.9545]
[1728095170138,6.9527,143.83,143.78,31.4336088]
[1728095171411,6.9527,143.83,143.79,1.35956675]
[1728095172637,6.9527,143.83,143.78,31.4336088]
[1728095177938,6.9532,143.82,143.78,31.4336088]
[1728095178929,24.027864,143.87,143.78,15.2919]
[1728095179244,6.9542,143.8,143.78,15.2919]
[1728095180038,6.9537,143.81,143.78,15.2919]
[1728095187458,17.3822,143.83,143.78,15.2919]
[1728095187741,1.73874707,143.82,143.74,15.1302]
[1728095187944,17.3847,143.81,143.74,15.1302]
[1728095188131,1.73914065,143.8,143.74,15.1302]
[1728095189023,1.73888592,143.82,143.74,15.1302]
[1728095190123,6.9547,143.79,143.74,22.0871]
[1728095191456,6.9541,143.8,143.75,16.1431088]
[1728095191656,6.9537,143.81,143.77,16.1422088]
[1728095192533,6.9527,143.83,143.78,6.9547]
[1728095192758,7.25404866,143.88,143.8,9.1867088]
[1728095193051,6.9521,143.84,143.81,9.1867088]
[1728095195857,6.9521,143.84,143.81,8.6867088]
[1728095196162,6.9521,143.84,143.8,9.1867088]
[1728095196950,6.9527,143.83,143.78,22.2823]
[1728095197146,6.9527,143.83,143.79,9.1867088]
[1728095210876,6.9521,143.85,143.8,1.35953249]
[1728095211075,17.3752,143.89,143.79,16.1411088]
[1728095211256,6.9522,143.84,143.8,6.954]
[1728095221992,6.9522,143.84,143.79,7.20538]
[1728095224673,1.7381508,143.88,143.78,15.3273]
[1728095224891,6.9536,143.81,143.78,15.3273]
[1728095225711,6.9532,143.82,143.78,15.3273]
[1728095226506,6.9536,143.81,143.78,15.3273]
[1728095227905,1.73830902,143.84,143.78,15.3273]
[1728095228091,6.9542,143.8,143.78,15.3273]
[1728095228684,6.9536,143.81,143.78,15.3273]
[1728095228886,6.9532,143.82,143.79,1.35990268]
[1728095229091,6.9527,143.83,143.79,1.35990268]
[1728095229296,6.9527,143.83,143.79,8.31430268]
[1728095229810,6.9527,143.83,143.79,6.9544]
[1728095232600,6.9527,143.83,143.78,15.3273]
[1728095232806,6.9527,143.83,143.78,22.2822]
[1728095233508,1.73830146,143.87,143.78,15.3273]
[1728095233696,19.11690194,143.86,143.78,15.3273]
[1728095234103,6.9541,143.8,143.78,15.3273]
[1728095242090,1.73852947,143.85,143.78,15.3273]
[1728095242295,6.9537,143.81,143.78,15.3273]
[1728095246621,6.9532,143.82,143.78,15.3273]
[1728095246821,17.3785,143.86,143.79,10.54641286]
[1728095247321,17.3785,143.86,143.79,9.1867088]
[1728095248124,6.9527,143.83,143.79,9.1867088]
[1728095253510,18.44107245,143.88,143.8,7.59820786]
[1728095253704,6.9517,143.85,143.8,14.55180786]
[1728095255726,6.9517,143.85,143.8,23.73851666]
[1728095256046,6.9517,143.85,143.8,22.3790088]
[1728095256418,1.7381047,143.88,143.8,13.1923]
[1728095256627,6.9522,143.84,143.8,13.1923]
[1728095257419,6.9522,143.84,143.8,6.2387]
[1728095262242,1.73810536,143.88,143.8,6.2387]
[1728095262546,6.9532,143.82,143.8,6.2387]
[1728095266515,6.9511,143.87,143.81,8.31285833]
[1728095266716,25.83885922,143.9,143.81,8.31285833]
[1728095266717,6.9505,143.88,143.82,32.4646]
[1728095267033,18.44107245,143.91,143.84,6.9521]
[1728095267238,35.81047245,143.94,143.84,6.9521]
[1728095267917,6.9502,143.88,143.83,17.49747678]
[1728095268530,6.9493,143.9,143.84,57.95321113]
[1728095268851,35.81047245,143.94,143.87,6.9505]
[1728095268852,6.9483,143.92,143.87,6.9505]
[1728095271749,6.9478,143.93,143.88,6.9498]
[1728095272246,6.9483,143.92,143.87,6.9506]
[1728095273048,6.9483,143.92,143.88,1.35696705]
[1728095273350,17.365,143.97,143.89,1.35692163]
[1728095273351,6.9479,143.93,143.89,1.35692163]
[1728095273661,6.9479,143.93,143.88,6.9501]
[1728095274946,17.365,143.97,143.88,6.9501]
[1728095274947,6.9474,143.94,143.89,29.357]
[1728095275146,6.9474,143.94,143.9,1.3561611]
[1728095275444,6.9474,143.94,143.9,8.3053611]
[1728095275624,0.8491069,144.0,143.91,6.9485]
[1728095275826,6.9468,143.95,143.92,1.35589459]
[1728095276838,6.9473,143.94,143.91,1.35605671]
[1728095277550,6.9473,143.94,143.9,6.9492]
[1728095280359,6.9478,143.93,143.89,22.4073]
[1728095282449,1.73698192,143.98,143.89,22.4073]
[1728095282659,6.9492,143.9,143.89,16.1783]
[1728095282955,6.9492,143.9,143.86,6.1525]
[1728095284063,6.9492,143.9,143.86,13.1036]
[1728095284347,1.73726078,143.94,143.86,13.1036]
[1728095284559,6.9488,143.91,143.86,13.1036]
[1728095288562,6.9497,143.89,143.86,6.1525]
[1728095290676,6.9493,143.9,143.86,6.1525]
[1728095297838,1.73737601,143.94,143.85,16.3907]
[1728095298062,1.73737601,143.94,143.82,23.7734]
[1728095298063,7.8,143.92,143.82,23.7734]
[1728095298363,7.8,143.92,143.82,6.3912]
[1728095298364,6.9521,143.85,143.82,6.3912]
[1728095303151,1.7378904,143.88,143.81,15.7728]
[1728095303468,6.9526,143.84,143.81,15.7728]
[1728095308253,6.9518,143.85,143.81,15.7728]
[1728095308467,17.3749,143.89,143.81,15.7728]
[1728095308468,6.9512,143.86,143.82,17.49854955]
[1728095308669,6.9507,143.87,143.82,17.49854955]
[1728095311786,6.9507,143.87,143.82,16.1397088]
[1728095314175,6.9507,143.87,143.83,1.35822703]
[1728095314978,6.9507,143.87,143.82,16.1397088]
[1728095315684,7.8,143.92,143.82,9.1867088]
[1728095315975,6.9508,143.87,143.83,17.3806]
[1728095316475,6.9508,143.87,143.83,23.7229]
[1728095320081,6.9512,143.86,143.83,23.7229]
[1728095322181,6.9512,143.86,143.83,6.3423]
[1728095323075,1.73778408,143.9,143.83,6.3423]
[1728095323376,6.9517,143.85,143.83,6.3423]
[1728095328088,17.3726,143.91,143.83,6.3423]
[1728095328383,6.9512,143.86,143.83,6.3423]
[1728095335877,6.9522,143.84,143.81,15.7728]
[1728095339212,6.9518,143.85,143.81,15.7728]
[1728095345477,6.9518,143.85,143.81,24.9595088]
[1728095345907,6.9518,143.85,143.81,31.9130088]
[1728095346812,6.9518,143.85,143.81,33.27172478]
[1728095347194,6.9518,143.85,143.81,31.9130088]
[1728095353006,17.3752,143.89,143.81,24.9595088]
[1728095353186,6.9507,143.87,143.82,6.9526]
[1728095353687,6.9507,143.87,143.83,8.31090313]
[1728095354596,6.9507,143.87,143.83,6.9526]
[1728095354892,6.9507,143.87,143.82,30.980964]
[1728095358799,17.3739,143.9,143.81,15.7728]
[1728095358989,6.9526,143.83,143.81,15.7728]
[1728095369818,1.73813936,143.87,143.81,15.7728]
[1728095369819,6.9531,143.82,143.81,15.7728]
[1728095369997,1.73820362,143.84,143.79,15.8214088]
[1728095370315,6.9539,143.81,143.77,24.8844088]
[1728095372720,26.18018328,143.87,143.79,9.1867088]
[1728095373017,6.9527,143.83,143.8,1.35925055]
[1728095378826,6.9527,143.83,143.79,16.1412088]
[1728095380618,6.9527,143.83,143.8,1.35934525]
[1728095382124,6.9527,143.83,143.79,16.1412088]
[1728095388433,23.6816,143.88,143.8,17.3848]
[1728095388605,6.9527,143.83,143.8,17.3848]
[1728095388927,6.9527,143.83,143.79,16.1411088]
[1728095390531,6.9527,143.83,143.79,6.9544]
[1728095392929,1.73822775,143.87,143.79,6.9544]
[1728095393234,6.9522,143.84,143.8,8.31299773]
[1728095394326,6.9517,143.85,143.82,9.1867088]
[1728095395126,6.9517,143.85,143.81,21.9724]
[1728095395337,6.9517,143.85,143.81,15.019]
[1728095396337,6.9522,143.84,143.81,15.019]
[1728095399732,1.73805938,143.87,143.81,15.019]
[1728095400037,6.9526,143.83,143.81,15.019]
[1728095400422,6.9531,143.82,143.81,15.019]
[1728095401638,6.9527,143.83,143.81,15.019]
[1728095409548,6.9531,143.82,143.81,15.019]
[1728095410245,6.9536,143.81,143.77,6.955]
[1728095412057,6.9536,143.81,143.76,48.9152088]
[1728095413954,6.9536,143.81,143.77,8.31539183]
[1728095414459,17.3786,143.86,143.78,34.32348374]
[1728095414633,6.9527,143.83,143.78,39.9181928]
[1728095415257,6.9527,143.83,143.79,1.35947782]
[1728095416458,6.9527,143.83,143.79,8.31387782]
[1728095417557,6.9527,143.83,143.79,1.35947782]
[1728095418760,6.9527,143.83,143.78,39.9184928]
[1728095421059,6.9533,143.82,143.78,6.9549]
[1728095421245,6.9533,143.82,143.77,16.2675988]
[1728095421449,6.9536,143.81,143.77,6.9554]
[1728095422964,17.3786,143.86,143.78,1.35977749]
[1728095423170,6.9531,143.82,143.78,8.31467749]
[1728095423863,6.9531,143.82,143.78,6.9549]
[1728095425543,6.9538,143.81,143.76,32.89809]
[1728095425740,6.9532,143.82,143.77,40.1700728]
[1728095426068,6.9532,143.82,143.78,6.955]
[1728095427136,6.9532,143.82,143.77,6.9554]
[1728095430068,6.9532,143.82,143.78,1.35989222]
[1728095431067,6.9532,143.82,143.78,10.54660102]
[1728095431244,17.3786,143.86,143.78,26.5739088]
[1728095431446,6.9518,143.85,143.8,6.954]
[1728095432966,1.7380669,143.86,143.8,6.954]
[1728095433163,6.9523,143.84,143.8,6.954]
[1728095435362,6.9523,143.84,143.79,30.982364]
[1728095441451,6.9526,143.83,143.79,6.9545]
[1728095441946,6.9526,143.83,143.78,33.5288088]
[1728095443476,1.73825057,143.82,143.76,15.3826]
[1728095443678,1.73855616,143.84,143.76,15.3826]